[Event "EWIRCC 2019"]
[Site "Monte-Carlo"]
[Date "2019.11.30"]
[Round "2.8"]
[White "Zvereva, Marija"]
[Black "Bulmaga, Irina"]
[Result "0-1"]
[ECO "C77"]
[WhiteElo "2154"]
[BlackElo "2435"]
[Annotator "NA"]
[PlyCount "96"]
[EventDate "2019.11.28"]
[EventType "swiss"]
[EventCountry "MNC"]
[SourceTitle "playchess.com"]
[Source "ChessBase"]
[SourceQuality "1"]
[TimeControl "5400+30"]

1. e4 {[%emt 1:15:13]} e5 {[%emt 1:15:12]} 2. Nf3 {[%emt 0:00:23]} Nc6 {[%emt 0:00:22]} 3. Bb5 {[%emt 0:00:27]} a6 {[%emt 0:00:22]} 4. Ba4 {[%emt 0:00:22]} Nf6 {[%emt 0:00:23]} 5. d3 {[%emt 0:00:24]} d6 {[%emt 0:00:22]} 6. c3 {[%emt 0:00:24]} g6 {[%emt 0:00:23]} 7. h3 {[%emt 0:00:30]} Bg7 {[%emt 0:00:22]} 8. O-O {[%emt 0:00:29]} O-O {[%emt 0:00:23]} 9. Re1 {[%emt 0:00:28]} b5 {[%emt 0:00:26]} 10. Bc2 {[%emt 0:00:24]} d5 {[%emt 0:01:03]} 11. Nbd2 {[%emt 0:00:56]} h6 {[%emt 0:00:25]} 12. Qe2 {[%emt 0:01:51]} Re8 {[%emt 0:00:37]} 13. Nf1 {[%emt 0:00:29]} Be6 {[%emt 0:00:27]} 14. N3h2 {[%emt 0:01:08]} Qd7 {[%emt 0:00:42]} 15. Ne3 {[%emt 0:00:56]} Rad8 {[%emt 0:00:50]} 16. Neg4 {[%emt 0:00:40]} Nxg4 {[%emt 0:00:44]} 17. Nxg4 {[%emt 0:00:22]} Kh7 {[%emt 0:03:51]} 18. Bb3 {[%emt 0:03:52]} f5 {[%emt 0:01:14]} 19. exf5 {[%emt 0:01:11]} gxf5 {[%emt 0:00:47]} 20. Nh2 {[%emt 0:00:35]} Qf7 {[%emt 0:01:19]} 21. Bc2 {[%emt 0:00:48]} Kh8 {[%emt 0:00:56]} 22. a4 {[%emt 0:01:56]} b4 {[%emt 0:00:48]} 23. a5 {[%emt 0:00:22]} Rf8 {[%emt 0:01:46]} 24. Bd2 {[%emt 0:00:50]} f4 {[%emt 0:01:00]} 25. d4 {[%emt 0:01:35]} e4 {[%emt 0:00:30]} 26. Qxa6 {[%emt 0:06:25]} Ne7 {[%emt 0:00:52]} 27. Qf1 {[%emt 0:00:00]} f3 {[%emt 0:00:37]} 28. g3 {[%emt 0:00:00]} Nf5 {[%emt 0:00:41]} 29. a6 {[%emt 0:00:00]} Nxg3 {[%emt 0:00:45]} 30. fxg3 {[%emt 0:00:00]} f2+ {[%emt 0:00:22]} 31. Kg2 {[%emt 0:00:00]} fxe1=Q {[%emt 0:00:49]} 32. Qxe1 {[%emt 0:00:00]} Qd7 {[%emt 0:00:50]} 33. g4 {[%emt 0:00:00]} Qb5 {[%emt 0:01:12]} 34. a7 {[%emt 0:00:16]} Ra8 {[%emt 0:00:23]} 35. Ba4 {[%emt 0:02:01]} Qb6 {[%emt 0:00:22]} 36. Qh4 {[%emt 0:00:26]} Rf6 {[%emt 0:01:04]} 37. g5 {[%emt 0:00:33]} Rg6 {[%emt 0:00:29]} 38. Be8 {[%emt 0:00:27]} Rxe8 {[%emt 0:00:36]} 39. a8=Q {[%emt 0:00:23]} Rxa8 {[%emt 0:00:22]} 40. Rxa8+ {[%emt 0:00:21]} Kh7 {[%emt 0:00:20]} 41. Ng4 {[%emt 0:00:49]} Bxg4 {[%emt 0:00:56]} 42. Qxg4 {[%emt 0:00:40]} bxc3 {[%emt 0:01:00]} 43. bxc3 {[%emt 0:00:47]} Qb2 {[%emt 0:00:39]} 44. Qe2 {[%emt 0:00:27]} Rxg5+ {[%emt 0:00:27]} 45. Kh2 {[%emt 0:00:28]} Rg6 {[%emt 0:00:45]} 46. Rd8 {[%emt 0:01:04]} c5 {[%emt 0:01:50]} 47. Rxd5 {[%emt 0:00:33]} cxd4 {[%emt 0:00:21]} 48. cxd4 {[%emt 0:00:24]} Qb3 {[%emt 0:00:22]} 0-1

[Event "EWIRCC 2019"]
[Site "Monte-Carlo"]
[Date "2019.11.30"]
[Round "2.9"]
[White "Paehtz, Elisabeth"]
[Black "Zakurdjaeva, Irina"]
[Result "1-0"]
[ECO "D02"]
[WhiteElo "2484"]
[BlackElo "2235"]
[Annotator "ChessBase"]
[PlyCount "51"]
[EventDate "2019.11.28"]
[EventType "swiss"]
[EventCountry "MNC"]
[SourceTitle "playchess.com"]
[Source "ChessBase"]
[SourceQuality "1"]
[TimeControl "5400+30"]

1. d4 {[%emt 1:15:12]} Nf6 {[%emt 1:15:13]} 2. Nf3 {[%emt 0:00:22]} e6 {[%emt 0:00:25]} 3. Bf4 {[%emt 0:00:22]} d5 {[%emt 0:00:45]} 4. e3 {[%emt 0:00:21]} Be7 {[%emt 0:00:36]} 5. c3 {[%emt 0:00:30]} O-O {[%emt 0:00:52]} 6. Nbd2 {[%emt 0:00:22]} c5 {[%emt 0:00:42]} 7. Bd3 {[%emt 0:00:24]} Nc6 {[%emt 0:00:37]} 8. h4 {[%emt 0:01:03]} b6 {[%emt 0:01:07]} 9. Qe2 {[%emt 0:00:46]} Bb7 {[%emt 0:01:06]} 10. Ng5 {[%emt 0:01:31]} Rc8 {[%emt 0:01:11]} 11. Ndf3 {[%emt 0:01:38]} h6 {[%emt 0:02:03]} 12. Nd2 {[%emt 0:00:22]} Bd6 {[%emt 0:00:37]} 13. Bxd6 {[%emt 0:03:52]} Qxd6 {[%emt 0:00:22]} 14. Ngf3 {[%emt 0:00:26]} e5 {[%emt 0:00:50]} 15. dxc5 {[%emt 0:00:28]} Qxc5 {[%emt 0:01:04]} 16. Bf5 {[%emt 0:00:59]} Rcd8 {[%emt 0:02:06]} 17. Nb3 {[%emt 0:00:41]} Qe7 {[%emt 0:00:41]} 18. O-O-O {[%emt 0:00:34]} Bc8 {[%emt 0:02:22]} 19. Bc2 {[%emt 0:02:05]} a5 {[%emt 0:01:17]} 20. Qb5 {[%emt 0:01:30]} Bd7 {[%emt 0:01:28]} 21. Qxb6 {[%emt 0:01:50]} Rb8 {[%emt 0:01:07]} 22. Qc5 {[%emt 0:00:25]} Qd8 {[%emt 0:02:33]} 23. Qa3 {[%emt 0:01:33]} Qb6 {[%emt 0:00:58]} 24. Nc5 {[%emt 0:00:26]} Bg4 {[%emt 0:00:27]} 25. Rd2 {[%emt 0:00:51]} Rfc8 {[%emt 0:01:07]} 26. Nh2 {[%emt 0:00:28]} 1-0

[Event "EWIRCC 2019"]
[Site "Monte-Carlo"]
[Date "2019.11.30"]
[Round "2.10"]
[White "Janzelj, Lara"]
[Black "Girya, Olga"]
[Result "0-1"]
[ECO "D19"]
[WhiteElo "2158"]
[BlackElo "2476"]
[Annotator "ChessBase"]
[PlyCount "148"]
[EventDate "2019.11.28"]
[EventType "swiss"]
[EventCountry "MNC"]
[SourceTitle "playchess.com"]
[Source "ChessBase"]
[SourceQuality "1"]
[TimeControl "5400+30"]

1. d4 {[%emt 1:15:12]} d5 {[%emt 1:15:12]} 2. c4 {[%emt 0:00:21]} c6 {[%emt 0:00:20]} 3. Nf3 {[%emt 0:00:22]} Nf6 {[%emt 0:00:22]} 4. Nc3 {[%emt 0:00:22]} dxc4 {[%emt 0:00:21]} 5. a4 {[%emt 0:00:21]} Bf5 {[%emt 0:00:22]} 6. e3 {[%emt 0:00:24]} e6 {[%emt 0:00:21]} 7. Bxc4 {[%emt 0:00:22]} Bb4 {[%emt 0:00:22]} 8. O-O {[%emt 0:00:22]} Nbd7 {[%emt 0:00:21]} 9. Qe2 {[%emt 0:00:41]} Bg4 {[%emt 0:00:21]} 10. h3 {[%emt 0:00:22]} Bh5 {[%emt 0:00:21]} 11. Rd1 {[%emt 0:00:35]} O-O {[%emt 0:00:22]} 12. g4 {[%emt 0:00:28]} Bg6 {[%emt 0:00:23]} 13. Ne5 {[%emt 0:01:04]} Nxe5 {[%emt 0:03:03]} 14. dxe5 {[%emt 0:00:22]} Nd7 {[%emt 0:00:33]} 15. Na2 {[%emt 0:02:09]} Ba5 {[%emt 0:00:36]} 16. b4 {[%emt 0:00:34]} Bc7 {[%emt 0:00:22]} 17. Bb2 {[%emt 0:00:43]} Qe7 {[%emt 0:00:37]} 18. f4 {[%emt 0:00:28]} Nb6 {[%emt 0:01:41]} 19. Bb3 {[%emt 0:00:40]} Qh4 {[%emt 0:01:27]} 20. Kh2 {[%emt 0:00:51]} Nd5 {[%emt 0:01:18]} 21. Rac1 {[%emt 0:00:50]} Rac8 {[%emt 0:01:14]} 22. Bd4 {[%emt 0:02:47]} Bb6 {[%emt 0:04:09]} 23. Bxd5 {[%emt 0:00:38]} cxd5 {[%emt 0:00:43]} 24. Bxb6 {[%emt 0:01:23]} axb6 {[%emt 0:00:21]} 25. Nc3 {[%emt 0:00:39]} h5 {[%emt 0:02:59]} 26. g5 {[%emt 0:03:15]} Rc4 {[%emt 0:00:50]} 27. Nb5 {[%emt 0:01:43]} Rfc8 {[%emt 0:00:28]} 28. Rxc4 {[%emt 0:00:35]} Rxc4 {[%emt 0:00:22]} 29. Nd4 {[%emt 0:00:26]} Be4 {[%emt 0:00:45]} 30. Qd2 {[%emt 0:02:01]} Rxb4 {[%emt 0:02:52]} 31. Ra1 {[%emt 0:01:59]} Rc4 {[%emt 0:00:29]} 32. Ra2 {[%emt 0:00:42]} Kh7 {[%emt 0:01:15]} 33. Nb5 {[%emt 0:01:21]} Bf5 {[%emt 0:00:31]} 34. Qg2 {[%emt 0:00:27]} Rc1 {[%emt 0:00:24]} 35. Nd6 {[%emt 0:01:06]} Qe1 {[%emt 0:00:55]} 36. Re2 {[%emt 0:00:31]} Qd1 {[%emt 0:00:31]} 37. Rd2 {[%emt 0:00:24]} Qxa4 {[%emt 0:00:27]} 38. Nxf5 {[%emt 0:00:57]} exf5 {[%emt 0:00:22]} 39. Rxd5 {[%emt 0:00:40]} Rc2 {[%emt 0:00:45]} 40. Rd2 {[%emt 0:00:21]} Rxd2 {[%emt 0:00:22]} 41. Qxd2 {[%emt 0:00:21]} Qe4 {[%emt 0:00:23]} 42. Qe2 {[%emt 0:00:39]} g6 {[%emt 0:00:35]} 43. Qd2 {[%emt 0:00:21]} b5 {[%emt 0:00:30]} 44. Qd7 {[%emt 0:00:30]} Qc2+ {[%emt 0:00:37]} 45. Kg1 {[%emt 0:00:31]} Qc4 {[%emt 0:00:29]} 46. Qxb7 {[%emt 0:00:26]} b4 {[%emt 0:00:26]} 47. e6 {[%emt 0:00:23]} Qxe6 {[%emt 0:00:24]} 48. Qxb4 {[%emt 0:00:32]} Qxe3+ {[%emt 0:00:21]} 49. Kh2 {[%emt 0:00:32]} h4 {[%emt 0:00:38]} 50. Qc4 {[%emt 0:00:28]} Qg3+ {[%emt 0:00:24]} 51. Kh1 {[%emt 0:00:20]} Qxh3+ {[%emt 0:00:22]} 52. Kg1 {[%emt 0:00:21]} Qe3+ {[%emt 0:00:22]} 53. Kh2 {[%emt 0:00:23]} Kg7 {[%emt 0:00:28]} 54. Qc7 {[%emt 0:00:33]} Qf2+ {[%emt 0:00:45]} 55. Kh1 {[%emt 0:00:23]} Qb2 {[%emt 0:00:32]} 56. Qc4 {[%emt 0:00:58]} h3 {[%emt 0:00:38]} 57. Qf1 {[%emt 0:00:48]} Qc3 {[%emt 0:00:44]} 58. Kh2 {[%emt 0:00:28]} Qe3 {[%emt 0:00:23]} 59. Qa1+ {[%emt 0:00:25]} Kh7 {[%emt 0:00:23]} 60. Qf1 {[%emt 0:00:47]} Kg8 {[%emt 0:00:21]} 61. Qc4 {[%emt 0:00:26]} Qf3 {[%emt 0:00:29]} 62. Qc8+ {[%emt 0:00:35]} Kg7 {[%emt 0:00:27]} 63. Qc2 {[%emt 0:00:22]} Qxf4+ {[%emt 0:00:23]} 64. Kxh3 {[%emt 0:00:22]} Qg4+ {[%emt 0:00:22]} 65. Kh2 {[%emt 0:00:21]} Qh4+ {[%emt 0:00:21]} 66. Kg1 {[%emt 0:00:25]} Qxg5+ {[%emt 0:00:22]} 67. Kf1 {[%emt 0:00:23]} Qf4+ {[%emt 0:00:21]} 68. Kg1 {[%emt 0:00:22]} Qe3+ {[%emt 0:00:22]} 69. Kh2 {[%emt 0:00:25]} f4 {[%emt 0:00:26]} 70. Qb2+ {[%emt 0:00:22]} Kh7 {[%emt 0:00:29]} 71. Qf6 {[%emt 0:00:26]} Kg8 {[%emt 0:00:35]} 72. Qa6 {[%emt 0:01:08]} f3 {[%emt 0:00:33]} 73. Qa8+ {[%emt 0:00:22]} Kh7 {[%emt 0:00:38]} 74. Qf8 {[%emt 0:00:35]} Qh6+ {[%emt 0:00:23]} 0-1

[Event "EWIRCC 2019"]
[Site "Monte-Carlo"]
[Date "2019.11.30"]
[Round "2.11"]
[White "Daulyte-Cornette, Deimante"]
[Black "Terbe, Julianna"]
[Result "1-0"]
[ECO "C48"]
[WhiteElo "2405"]
[BlackElo "2287"]
[Annotator "NA"]
[PlyCount "53"]
[EventDate "2019.11.28"]
[EventType "swiss"]
[EventCountry "MNC"]
[SourceTitle "playchess.com"]
[Source "ChessBase"]
[SourceQuality "1"]
[TimeControl "5400+30"]

1. e4 {[%emt 1:15:12]} e5 {[%emt 1:15:13]} 2. Nf3 {[%emt 0:00:25]} Nc6 {[%emt 0:00:22]} 3. Nc3 {[%emt 0:00:30]} Nf6 {[%emt 0:00:24]} 4. Bb5 {[%emt 0:00:24]} Bc5 {[%emt 0:00:53]} 5. O-O {[%emt 0:00:36]} O-O {[%emt 0:00:29]} 6. Nxe5 {[%emt 0:00:29]} Nxe5 {[%emt 0:00:22]} 7. d4 {[%emt 0:00:22]} Bd6 {[%emt 0:00:51]} 8. dxe5 {[%emt 0:00:23]} Bxe5 {[%emt 0:00:22]} 9. Bd3 {[%emt 0:00:25]} d6 {[%emt 0:01:15]} 10. Ne2 {[%emt 0:01:11]} Bxh2+ {[%emt 0:04:19]} 11. Kxh2 {[%emt 0:00:37]} Ng4+ {[%emt 0:00:21]} 12. Kg1 {[%emt 0:00:54]} Qh4 {[%emt 0:00:23]} 13. Bf4 {[%emt 0:00:26]} f5 {[%emt 0:02:17]} 14. f3 {[%emt 0:04:11]} Nh6 {[%emt 0:01:29]} 15. Qe1 {[%emt 0:02:23]} Qf6 {[%emt 0:00:46]} 16. Qg3 {[%emt 0:01:49]} Nf7 {[%emt 0:00:30]} 17. exf5 {[%emt 0:00:37]} Bxf5 {[%emt 0:00:30]} 18. Bxf5 {[%emt 0:00:28]} Qxf5 {[%emt 0:00:21]} 19. Nd4 {[%emt 0:00:30]} Qc5 {[%emt 0:00:42]} 20. Qf2 {[%emt 0:00:45]} Rae8 {[%emt 0:00:34]} 21. Rae1 {[%emt 0:00:30]} Ne5 {[%emt 0:00:38]} 22. Bxe5 {[%emt 0:00:34]} dxe5 {[%emt 0:00:28]} 23. Nb3 {[%emt 0:00:30]} Qc6 {[%emt 0:00:35]} 24. Qc5 {[%emt 0:00:45]} Qg6 {[%emt 0:01:28]} 25. Rxe5 {[%emt 0:00:54]} Rxe5 {[%emt 0:00:29]} 26. Qxe5 {[%emt 0:00:22]} Re8 {[%emt 0:00:29]} 27. Qxc7 {[%emt 0:00:47]} 1-0

[Event "EWIRCC 2019"]
[Site "Monte-Carlo"]
[Date "2019.11.30"]
[Round "2.12"]
[White "Belenkaya, Dina"]
[Black "Socko, Monika"]
[Result "0-1"]
[ECO "B10"]
[WhiteElo "2302"]
[BlackElo "2417"]
[Annotator "NA"]
[PlyCount "152"]
[EventDate "2019.11.28"]
[EventType "swiss"]
[EventCountry "MNC"]
[SourceTitle "playchess.com"]
[Source "ChessBase"]
[SourceQuality "1"]
[TimeControl "5400+30"]

1. e4 {[%emt 1:15:11]} c6 {[%emt 1:15:11]} 2. d3 {[%emt 0:00:33]} d5 {[%emt 0:00:29]} 3. Nd2 {[%emt 0:00:23]} g6 {[%emt 0:00:25]} 4. g3 {[%emt 0:00:27]} Bg7 {[%emt 0:00:22]} 5. Bg2 {[%emt 0:00:27]} e5 {[%emt 0:00:24]} 6. Ngf3 {[%emt 0:00:26]} Ne7 {[%emt 0:00:23]} 7. O-O {[%emt 0:00:24]} O-O {[%emt 0:00:22]} 8. Re1 {[%emt 0:02:11]} d4 {[%emt 0:00:22]} 9. Nh4 {[%emt 0:01:01]} c5 {[%emt 0:00:47]} 10. f4 {[%emt 0:01:32]} Nbc6 {[%emt 0:01:09]} 11. a4 {[%emt 0:01:20]} Be6 {[%emt 0:01:25]} 12. Rf1 {[%emt 0:00:48]} Qd7 {[%emt 0:02:13]} 13. f5 {[%emt 0:03:05]} gxf5 {[%emt 0:00:21]} 14. exf5 {[%emt 0:00:51]} Nxf5 {[%emt 0:00:21]} 15. Nxf5 {[%emt 0:00:42]} Bxf5 {[%emt 0:00:21]} 16. Ne4 {[%emt 0:00:27]} Bxe4 {[%emt 0:02:26]} 17. dxe4 {[%emt 0:00:31]} c4 {[%emt 0:01:14]} 18. Rf5 {[%emt 0:03:23]} d3 {[%emt 0:01:32]} 19. c3 {[%emt 0:00:24]} Rad8 {[%emt 0:01:10]} 20. Bd2 {[%emt 0:00:21]} Ne7 {[%emt 0:00:30]} 21. Rh5 {[%emt 0:00:55]} Qc6 {[%emt 0:01:41]} 22. Qg4 {[%emt 0:01:10]} Rd6 {[%emt 0:00:22]} 23. Qh3 {[%emt 0:00:43]} Qb6+ {[%emt 0:01:59]} 24. Kh1 {[%emt 0:00:24]} Qf2 {[%emt 0:00:30]} 25. Qh4 {[%emt 0:02:41]} f6 {[%emt 0:02:52]} 26. Bh6 {[%emt 0:02:09]} d2 {[%emt 0:00:36]} 27. Qg4 {[%emt 0:00:22]} Qe1+ {[%emt 0:01:13]} 28. Bf1 {[%emt 0:00:21]} Rf7 {[%emt 0:00:24]} 29. Rd1 {[%emt 0:00:21]} Qf2 {[%emt 0:01:21]} 30. Bxg7 {[%emt 0:00:27]} Rxg7 {[%emt 0:02:35]} 31. Qe2 {[%emt 0:00:33]} Qxe2 {[%emt 0:00:00]} 32. Bxe2 {[%emt 0:00:22]} Kh8 {[%emt 0:00:11]} 33. Kg2 {[%emt 0:00:47]} Rg8 {[%emt 0:00:24]} 34. Bxc4 {[%emt 0:00:23]} Rgd8 {[%emt 0:00:23]} 35. Kf3 {[%emt 0:00:24]} Rb6 {[%emt 0:00:31]} 36. b3 {[%emt 0:00:25]} Rbd6 {[%emt 0:00:22]} 37. Ke2 {[%emt 0:00:23]} a6 {[%emt 0:00:26]} 38. g4 {[%emt 0:00:26]} Kg7 {[%emt 0:00:21]} 39. g5 {[%emt 0:00:37]} f5 {[%emt 0:00:48]} 40. Rh6 {[%emt 0:01:01]} Rxh6 {[%emt 0:00:47]} 41. gxh6+ {[%emt 0:00:21]} Kxh6 {[%emt 0:00:21]} 42. exf5 {[%emt 0:00:22]} Kg5 {[%emt 0:00:29]} 43. Rxd2 {[%emt 0:00:46]} Rxd2+ {[%emt 0:00:31]} 44. Kxd2 {[%emt 0:00:21]} Kxf5 {[%emt 0:00:26]} 45. Ke3 {[%emt 0:00:22]} e4 {[%emt 0:00:30]} 46. a5 {[%emt 0:00:21]} Ke5 {[%emt 0:00:21]} 47. Bf7 {[%emt 0:00:45]} Nf5+ {[%emt 0:00:21]} 48. Ke2 {[%emt 0:00:22]} Kf4 {[%emt 0:00:32]} 49. Bd5 {[%emt 0:00:21]} Nd6 {[%emt 0:00:21]} 50. c4 {[%emt 0:00:25]} Ke5 {[%emt 0:00:20]} 51. Ke3 {[%emt 0:00:25]} Nf5+ {[%emt 0:00:21]} 52. Ke2 {[%emt 0:00:21]} Nd4+ {[%emt 0:00:23]} 53. Ke3 {[%emt 0:00:23]} Nxb3 {[%emt 0:00:58]} 54. Bxe4 {[%emt 0:00:26]} Nxa5 {[%emt 0:00:22]} 55. c5 {[%emt 0:00:35]} h6 {[%emt 0:00:24]} 56. Bg2 {[%emt 0:00:40]} Nb3 {[%emt 0:00:28]} 57. c6 {[%emt 0:01:17]} bxc6 {[%emt 0:00:21]} 58. Bxc6 {[%emt 0:00:21]} Nc5 {[%emt 0:00:22]} 59. Be8 {[%emt 0:00:30]} a5 {[%emt 0:00:22]} 60. Kf3 {[%emt 0:00:44]} a4 {[%emt 0:00:27]} 61. Bb5 {[%emt 0:00:35]} a3 {[%emt 0:01:09]} 62. Bc4 {[%emt 0:00:21]} Ne4 {[%emt 0:00:21]} 63. Ke3 {[%emt 0:00:44]} Nc3 {[%emt 0:00:25]} 64. Kd3 {[%emt 0:00:30]} a2 {[%emt 0:00:21]} 65. Bxa2 {[%emt 0:00:27]} Nxa2 {[%emt 0:00:21]} 66. Ke3 {[%emt 0:00:24]} Nc3 {[%emt 0:00:23]} 67. Kf3 {[%emt 0:00:21]} Kf5 {[%emt 0:00:21]} 68. Kg3 {[%emt 0:00:22]} Ne4+ {[%emt 0:00:24]} 69. Kh4 {[%emt 0:00:25]} Nf6 {[%emt 0:00:21]} 70. Kg3 {[%emt 0:00:29]} Kg5 {[%emt 0:00:22]} 71. Kh3 {[%emt 0:00:21]} Ne4 {[%emt 0:00:25]} 72. Kg2 {[%emt 0:00:23]} Kg4 {[%emt 0:00:21]} 73. Kg1 {[%emt 0:00:23]} Kh3 {[%emt 0:00:24]} 74. Kh1 {[%emt 0:00:21]} Ng5 {[%emt 0:00:23]} 75. Kg1 {[%emt 0:00:22]} Nf3+ {[%emt 0:00:23]} 76. Kh1 {[%emt 0:00:25]} Nxh2 {[%emt 0:00:22]} 0-1

[Event "EWIRCC 2019"]
[Site "Monte-Carlo"]
[Date "2019.11.30"]
[Round "2.13"]
[White "Novkovic, Julia"]
[Black "Kashlinskaya, Alina"]
[Result "1/2-1/2"]
[ECO "C09"]
[WhiteElo "2161"]
[BlackElo "2486"]
[Annotator "ChessBase"]
[PlyCount "132"]
[EventDate "2019.11.28"]
[EventType "swiss"]
[EventCountry "MNC"]
[SourceTitle "playchess.com"]
[Source "ChessBase"]
[SourceQuality "1"]
[TimeControl "5400+30"]

1. e4 {[%emt 1:15:11]} e6 {[%emt 1:15:11]} 2. d4 {[%emt 0:00:22]} d5 {[%emt 0:00:22]} 3. Nd2 {[%emt 0:00:22]} c5 {[%emt 0:00:22]} 4. exd5 {[%emt 0:00:22]} exd5 {[%emt 0:00:40]} 5. Ngf3 {[%emt 0:00:29]} Nc6 {[%emt 0:00:22]} 6. Bb5 {[%emt 0:00:30]} Qe7+ {[%emt 0:00:22]} 7. Qe2 {[%emt 0:00:24]} Qxe2+ {[%emt 0:00:26]} 8. Kxe2 {[%emt 0:00:26]} a6 {[%emt 0:01:54]} 9. Bxc6+ {[%emt 0:00:26]} bxc6 {[%emt 0:00:21]} 10. dxc5 {[%emt 0:00:21]} Bxc5 {[%emt 0:01:24]} 11. Nb3 {[%emt 0:00:22]} Bd6 {[%emt 0:00:24]} 12. Be3 {[%emt 0:00:28]} a5 {[%emt 0:01:39]} 13. Bc5 {[%emt 0:03:01]} Kd7 {[%emt 0:01:06]} 14. a4 {[%emt 0:00:52]} Ba6+ {[%emt 0:01:26]} 15. Kd1 {[%emt 0:01:38]} Nf6 {[%emt 0:00:33]} 16. Ng5 {[%emt 0:01:09]} Rhf8 {[%emt 0:00:34]} 17. Bd4 {[%emt 0:00:54]} h6 {[%emt 0:02:50]} 18. Bxf6 {[%emt 0:01:00]} gxf6 {[%emt 0:00:22]} 19. Nh7 {[%emt 0:00:21]} Rfb8 {[%emt 0:00:38]} 20. Nxf6+ {[%emt 0:00:25]} Ke7 {[%emt 0:00:54]} 21. Ng4 {[%emt 0:00:37]} Bc4 {[%emt 0:02:59]} 22. Nd4 {[%emt 0:01:37]} Rxb2 {[%emt 0:00:36]} 23. Nxc6+ {[%emt 0:00:22]} Kd7 {[%emt 0:00:57]} 24. Nce5+ {[%emt 0:00:22]} Kc7 {[%emt 0:00:21]} 25. Nxc4 {[%emt 0:01:59]} dxc4 {[%emt 0:00:21]} 26. Ne3 {[%emt 0:00:20]} c3 {[%emt 0:01:12]} 27. Nc4 {[%emt 0:01:44]} Rd8 {[%emt 0:01:23]} 28. Nxb2 {[%emt 0:00:30]} cxb2 {[%emt 0:00:21]} 29. Rb1 {[%emt 0:00:21]} Bb4+ {[%emt 0:00:23]} 30. Ke2 {[%emt 0:00:27]} Rd2+ {[%emt 0:00:21]} 31. Ke3 {[%emt 0:00:30]} Rxc2 {[%emt 0:00:22]} 32. Rhd1 {[%emt 0:01:51]} Kc6 {[%emt 0:00:21]} 33. Rd8 {[%emt 0:00:53]} Bc5+ {[%emt 0:01:01]} 34. Kd3 {[%emt 0:00:37]} Rxf2 {[%emt 0:00:22]} 35. Kc3 {[%emt 0:00:55]} Be7 {[%emt 0:00:35]} 36. Rc8+ {[%emt 0:01:11]} Kb7 {[%emt 0:01:41]} 37. Rg8 {[%emt 0:00:50]} Bf6+ {[%emt 0:00:39]} 38. Kb3 {[%emt 0:00:21]} Rf4 {[%emt 0:00:26]} 39. Rf8 {[%emt 0:00:42]} Be5 {[%emt 0:00:49]} 40. g3 {[%emt 0:00:44]} Rb4+ {[%emt 0:00:31]} 41. Kc2 {[%emt 0:00:24]} f6 {[%emt 0:00:38]} 42. Rh8 {[%emt 0:00:37]} Rxa4 {[%emt 0:00:28]} 43. Rh7+ {[%emt 0:00:44]} Kc6 {[%emt 0:00:25]} 44. Rxb2 {[%emt 0:00:48]} Bxb2 {[%emt 0:00:48]} 45. Kxb2 {[%emt 0:00:21]} Re4 {[%emt 0:01:02]} 46. Rxh6 {[%emt 0:00:21]} Kb5 {[%emt 0:00:37]} 47. Rh5+ {[%emt 0:00:38]} Kb4 {[%emt 0:01:08]} 48. Rh4 {[%emt 0:00:48]} f5 {[%emt 0:00:45]} 49. Rf4 {[%emt 0:00:21]} a4 {[%emt 0:00:21]} 50. h4 {[%emt 0:00:23]} Kc4 {[%emt 0:00:58]} 51. h5 {[%emt 0:00:31]} Kd5 {[%emt 0:00:21]} 52. Rxe4 {[%emt 0:00:56]} fxe4 {[%emt 0:00:23]} 53. h6 {[%emt 0:00:21]} a3+ {[%emt 0:00:32]} 54. Kxa3 {[%emt 0:00:34]} e3 {[%emt 0:00:21]} 55. h7 {[%emt 0:00:29]} e2 {[%emt 0:00:21]} 56. h8=Q {[%emt 0:00:22]} e1=Q {[%emt 0:00:22]} 57. Qd8+ {[%emt 0:00:32]} Kc6 {[%emt 0:00:23]} 58. Qd3 {[%emt 0:00:27]} Qe7+ {[%emt 0:00:45]} 59. Kb3 {[%emt 0:00:25]} Qe6+ {[%emt 0:00:25]} 60. Qc4+ {[%emt 0:00:23]} Kd6 {[%emt 0:00:20]} 61. Kc3 {[%emt 0:00:36]} Qxc4+ {[%emt 0:00:25]} 62. Kxc4 {[%emt 0:00:21]} Ke5 {[%emt 0:00:20]} 63. Kd3 {[%emt 0:00:22]} Kf5 {[%emt 0:00:21]} 64. Ke3 {[%emt 0:00:20]} Kg4 {[%emt 0:00:21]} 65. Kf2 {[%emt 0:00:21]} Kg5 {[%emt 0:00:21]} 66. Kf3 {[%emt 0:00:20]} Kf5 {[%emt 0:00:20]} 1/2-1/2

[Event "EWIRCC 2019"]
[Site "Monte-Carlo"]
[Date "2019.11.30"]
[Round "2.14"]
[White "Guichard, Pauline"]
[Black "Paasikangas-Tella, Johanna"]
[Result "1-0"]
[ECO "B08"]
[WhiteElo "2407"]
[BlackElo "2177"]
[Annotator "NA"]
[PlyCount "79"]
[EventDate "2019.11.28"]
[EventType "swiss"]
[EventCountry "MNC"]
[SourceTitle "playchess.com"]
[Source "ChessBase"]
[SourceQuality "1"]
[TimeControl "5400+30"]

1. d4 {[%emt 1:15:12]} Nf6 {[%emt 1:15:12]} 2. Nf3 {[%emt 0:00:22]} g6 {[%emt 0:00:22]} 3. Nc3 {[%emt 0:00:22]} Bg7 {[%emt 0:00:22]} 4. e4 {[%emt 0:00:22]} d6 {[%emt 0:00:24]} 5. Bb5+ {[%emt 0:00:46]} c6 {[%emt 0:00:23]} 6. Bd3 {[%emt 0:00:22]} O-O {[%emt 0:00:32]} 7. O-O {[%emt 0:00:55]} Qc7 {[%emt 0:00:42]} 8. h3 {[%emt 0:00:42]} e5 {[%emt 0:00:28]} 9. Re1 {[%emt 0:01:49]} Re8 {[%emt 0:00:44]} 10. dxe5 {[%emt 0:01:22]} dxe5 {[%emt 0:00:23]} 11. Bg5 {[%emt 0:00:28]} Be6 {[%emt 0:00:40]} 12. Qd2 {[%emt 0:00:43]} Nbd7 {[%emt 0:00:45]} 13. Rad1 {[%emt 0:00:30]} Nh5 {[%emt 0:02:06]} 14. Bc4 {[%emt 0:03:04]} Bxc4 {[%emt 0:01:33]} 15. Qxd7 {[%emt 0:00:24]} Rac8 {[%emt 0:00:28]} 16. g4 {[%emt 0:03:01]} Nf4 {[%emt 0:01:12]} 17. Bxf4 {[%emt 0:00:31]} exf4 {[%emt 0:00:22]} 18. Qxc7 {[%emt 0:00:30]} Rxc7 {[%emt 0:00:22]} 19. e5 {[%emt 0:00:22]} Rce7 {[%emt 0:00:51]} 20. Rd4 {[%emt 0:01:19]} b5 {[%emt 0:00:40]} 21. b3 {[%emt 0:00:47]} Be6 {[%emt 0:01:50]} 22. Rxf4 {[%emt 0:00:22]} h5 {[%emt 0:01:15]} 23. a4 {[%emt 0:03:06]} hxg4 {[%emt 0:00:35]} 24. hxg4 {[%emt 0:00:22]} Rb8 {[%emt 0:01:27]} 25. Nd4 {[%emt 0:01:14]} Bd7 {[%emt 0:00:26]} 26. Rfe4 {[%emt 0:01:03]} b4 {[%emt 0:00:32]} 27. Nb1 {[%emt 0:01:18]} Rbe8 {[%emt 0:03:29]} 28. Nf3 {[%emt 0:00:51]} c5 {[%emt 0:00:29]} 29. Nbd2 {[%emt 0:00:21]} Bc6 {[%emt 0:00:22]} 30. Rc4 {[%emt 0:00:50]} Bd7 {[%emt 0:02:46]} 31. Rxc5 {[%emt 0:00:49]} Bxg4 {[%emt 0:00:22]} 32. Kg2 {[%emt 0:00:57]} Bf5 {[%emt 0:01:03]} 33. Nd4 {[%emt 0:00:43]} Rxe5 {[%emt 0:00:51]} 34. Rcxe5 {[%emt 0:00:22]} Bxe5 {[%emt 0:01:10]} 35. Nxf5 {[%emt 0:00:25]} gxf5 {[%emt 0:00:25]} 36. Nc4 {[%emt 0:00:28]} f6 {[%emt 0:00:26]} 37. f4 {[%emt 0:00:21]} Kf8 {[%emt 0:01:11]} 38. fxe5 {[%emt 0:00:22]} Re6 {[%emt 0:00:27]} 39. Kf2 {[%emt 0:00:26]} Ke8 {[%emt 0:01:53]} 40. Kf1 {[%emt 0:01:47]} 1-0